bitfinex-derivatives/quotes_BTCF0:USTF0_20250716
["timestamp","ask_amount","ask_price","bid_price","bid_amount"]
[1752638287767,0.2465839,117580.0,117570.0,0.8574383]
[1752638287970,0.0764944,117580.0,117570.0,0.8574383]
[1752638288668,0.0764944,117580.0,117570.0,0.876553]
[1752638289774,0.6971599,117590.0,117580.0,0.1769894]
[1752638290070,0.6971599,117590.0,117580.0,1.10353145]
[1752638291863,0.6546407,117590.0,117580.0,1.10353145]
[1752638295877,0.6121218,117590.0,117580.0,1.10353145]
[1752638296374,0.4372944,117590.0,117580.0,1.10353145]
[1752638296675,0.3608,117590.0,117580.0,1.10353145]
[1752638296879,0.42196719,117590.0,117580.0,1.10353145]
[1752638297274,0.42196298,117590.0,117580.0,1.10353145]
[1752638297775,0.3608,117590.0,117580.0,1.10353145]
[1752638298274,0.4219598,117590.0,117580.0,1.10353145]
[1752638299386,0.3608,117590.0,117580.0,1.10353145]
[1752638299583,0.4372944,117590.0,117580.0,1.10353145]
[1752638300480,0.3608,117590.0,117580.0,1.10353145]
[1752638301778,0.4372944,117590.0,117580.0,1.10353145]
[1752638304587,0.3608,117590.0,117580.0,1.10353145]
[1752638304775,0.4219728,117590.0,117580.0,1.10353145]
[1752638306184,0.4219728,117590.0,117580.0,1.10453145]
[1752638306983,0.3608,117590.0,117580.0,1.10453145]
[1752638307286,0.36561,117590.0,117580.0,1.10453145]
[1752638313081,0.3608,117590.0,117580.0,1.10453145]
[1752638321584,0.4219728,117590.0,117580.0,1.10453145]
[1752638322492,0.4219728,117590.0,117580.0,1.40223145]
[1752638323289,0.3608,117590.0,117580.0,1.40223145]
[1752638324592,0.4219728,117590.0,117580.0,1.40223145]
[1752638324892,0.4293228,117590.0,117580.0,0.81963145]
[1752638325094,0.4293228,117590.0,117580.0,1.40187145]
[1752638325399,0.4293228,117590.0,117580.0,1.40183145]
[1752638326590,0.36815,117590.0,117580.0,1.40183145]
[1752638328291,0.36815,117590.0,117580.0,1.10413145]
[1752638331495,0.36815,117590.0,117580.0,1.12931905]
[1752638335099,0.36815,117590.0,117580.0,1.10413145]
[1752638339403,0.36577,117590.0,117580.0,1.10413145]
[1752638340892,0.36577,117590.0,117580.0,1.59831704]
[1752638341705,0.36815,117590.0,117580.0,1.59831704]
[1752638341907,0.36815,117590.0,117580.0,1.31894116]
[1752638343006,0.36815,117590.0,117580.0,1.13273788]
[1752638346003,0.4293228,117590.0,117580.0,1.13273788]
[1752638346801,0.538225,117590.0,117580.0,0.57111896]
[1752638347005,0.538225,117590.0,117580.0,1.12793788]
[1752638347006,0.5993978,117590.0,117580.0,1.12793788]
[1752638350410,0.4293228,117590.0,117580.0,1.12793788]
[1752638351008,0.4293228,117590.0,117580.0,1.13290788]
[1752638357116,0.538225,117590.0,117580.0,1.13290788]
[1752638358411,0.36815,117590.0,117580.0,1.13290788]
[1752638360318,0.538225,117590.0,117580.0,1.13290788]
[1752638361417,0.5993978,117590.0,117580.0,1.13290788]
[1752638364918,0.5993978,117590.0,117580.0,1.31923834]
[1752638366219,0.538225,117590.0,117580.0,1.31923834]
[1752638367720,0.59943466,117590.0,117580.0,1.31923834]
[1752638370623,0.538225,117590.0,117580.0,1.31923834]
[1752638371519,0.59943947,117590.0,117580.0,1.31923834]
[1752638375528,0.538225,117590.0,117580.0,1.31923834]
[1752638376323,0.61473708,117590.0,117580.0,1.31923834]
[1752638377028,0.61473708,117590.0,117580.0,1.31426834]
[1752638377628,0.61473708,117590.0,117580.0,1.31886834]
[1752638379726,0.44466208,117590.0,117580.0,1.31886834]
[1752638379931,0.43731208,117590.0,117580.0,1.31886834]
[1752638380131,0.42203216,117590.0,117580.0,1.31886834]
[1752638380327,0.3608,117590.0,117580.0,1.31886834]
[1752638380728,0.42203262,117590.0,117580.0,1.31886834]
[1752638381128,0.3608,117590.0,117580.0,1.31886834]
[1752638382026,0.36325,117590.0,117580.0,1.31886834]
[1752638382231,0.538185,117590.0,117580.0,0.7599894]
[1752638382433,0.538185,117590.0,117580.0,1.31886834]
[1752638382631,0.61469708,117590.0,117580.0,1.31886834]
[1752638382832,0.61469708,117590.0,117580.0,1.31866834]
[1752638384939,0.61469708,117590.0,117580.0,1.13237504]
[1752638385132,0.61469708,117590.0,117580.0,0.7597894]
[1752638385339,0.61469708,117590.0,117580.0,1.13237504]
[1752638386434,0.44462208,117590.0,117580.0,1.13237504]
[1752638386642,0.61469708,117590.0,117580.0,0.1779494]
[1752638386834,0.61469708,117590.0,117580.0,1.13237504]
[1752638387033,0.538185,117590.0,117580.0,1.13237504]
[1752638389737,0.538185,117590.0,117580.0,1.13137504]
[1752638389937,0.539185,117590.0,117580.0,1.13137504]
[1752638391446,0.60043319,117590.0,117580.0,1.13137504]
[1752638391644,0.60043319,117590.0,117580.0,0.7587894]
[1752638393146,0.60043319,117590.0,117580.0,0.7541894]
[1752638393545,0.60043319,117590.0,117580.0,1.12677504]
[1752638393845,0.539185,117590.0,117580.0,0.7541494]
[1752638394246,0.61569708,117590.0,117580.0,0.7541494]
[1752638397150,0.61569708,117590.0,117580.0,1.12673504]
[1752638397346,0.61569708,117590.0,117580.0,1.13126504]
[1752638399751,0.44562208,117590.0,117580.0,1.13126504]
[1752638401151,0.61569708,117590.0,117580.0,1.13126504]
[1752638402453,0.61569708,117590.0,117580.0,0.7586794]
[1752638402653,0.61569708,117590.0,117580.0,1.13126504]
[1752638403054,0.44562208,117590.0,117580.0,1.13126504]
[1752638403253,0.61569708,117590.0,117580.0,1.13126504]
[1752638403442,0.44562208,117590.0,117580.0,1.13126504]
[1752638405452,0.36911,117590.0,117580.0,1.13126504]
[1752638405654,0.44562208,117590.0,117580.0,1.13126504]
[1752638405855,0.36911,117590.0,117580.0,1.13126504]
[1752638407156,0.36911,117590.0,117580.0,1.3175278]
[1752638411562,0.44562208,117590.0,117580.0,1.3175278]
[1752638421265,0.61569708,117590.0,117580.0,0.7586794]
[1752638421466,0.6769303,117590.0,117580.0,1.3361506]
[1752638421770,0.60041822,117590.0,117580.0,1.3361506]
[1752638423075,0.539185,117590.0,117580.0,1.3361506]
[1752638423273,0.61569708,117590.0,117580.0,1.3361506]
[1752638424073,0.44562208,117590.0,117580.0,1.3361506]
[1752638424274,0.36911,117590.0,117580.0,1.3361506]
[1752638424474,0.44562208,117590.0,117580.0,1.3361506]
[1752638425673,0.44562208,117590.0,117580.0,1.33808571]
[1752638425876,0.44562208,117590.0,117580.0,1.37331025]
[1752638428775,0.61569708,117590.0,117580.0,1.37331025]
[1752638430480,0.44562208,117590.0,117580.0,1.37331025]
[1752638431182,0.36911,117590.0,117580.0,1.37331025]
[1752638431578,0.44562208,117590.0,117580.0,1.37331025]
[1752638431982,0.36911,117590.0,117580.0,1.37331025]
[1752638432588,0.539185,117590.0,117580.0,1.37331025]
[1752638433394,0.61569708,117590.0,117580.0,1.37331025]
[1752638438699,0.67695187,117590.0,117580.0,1.37331025]
[1752638438996,0.60043979,117590.0,117580.0,1.37331025]
[1752638439194,0.539185,117590.0,117580.0,1.37331025]
[1752638441200,0.60043956,117590.0,117580.0,1.37331025]
[1752638443300,0.539185,117590.0,117580.0,1.37331025]
[1752638443506,0.36911,117590.0,117580.0,1.37331025]
[1752638443802,0.539185,117590.0,117580.0,1.37331025]
[1752638444004,0.60043628,117590.0,117580.0,1.37331025]
[1752638446604,0.43036128,117590.0,117580.0,1.37331025]
[1752638449202,0.36911,117590.0,117580.0,1.37331025]
[1752638451708,0.43036128,117590.0,117580.0,1.37331025]
[1752638453007,0.36911,117590.0,117580.0,1.37331025]
[1752638453208,0.44562208,117590.0,117580.0,1.37331025]
[1752638453702,0.36911,117590.0,117580.0,1.37331025]
[1752638454102,0.44562208,117590.0,117580.0,1.37331025]
[1752638460309,0.44562208,117590.0,117580.0,0.81446185]
[1752638460515,0.44562208,117590.0,117580.0,1.37331025]
[1752638461516,0.43036248,117590.0,117580.0,1.37331025]
[1752638463215,0.43036248,117590.0,117580.0,0.81446185]
[1752638463407,0.43036248,117590.0,117580.0,1.37331025]
[1752638465115,0.43036248,117590.0,117580.0,0.81446185]
[1752638465315,0.43036248,117590.0,117580.0,1.37331025]
[1752638472515,0.43036248,117590.0,117580.0,0.81446185]
[1752638472917,0.43036248,117590.0,117580.0,1.37331025]
[1752638476918,0.42305248,117590.0,117580.0,1.65273445]
[1752638477122,0.3618,117590.0,117580.0,1.67875904]
[1752638477528,0.36888,117590.0,117580.0,0.81677484]
[1752638477721,0.36888,117590.0,117580.0,1.39945484]
[1752638478121,0.36788,117590.0,117580.0,1.39945484]
[1752638478323,0.36788,117590.0,117580.0,1.40045484]
[1752638478719,0.8183792,117590.0,117580.0,0.25792644]
[1752638478927,0.8183792,117590.0,117580.0,1.12003064]
[1752638481131,0.87963168,117590.0,117580.0,1.09476605]
[1752638481727,0.87963168,117590.0,117580.0,0.81534185]
[1752638481932,0.87963168,117590.0,117580.0,1.09476605]
[1752638482731,0.87963168,117590.0,117580.0,0.79151025]
[1752638482937,0.8183792,117590.0,117580.0,1.09015605]
[1752638484937,0.538955,117590.0,117580.0,1.09015605]
[1752638485137,0.8183792,117590.0,117580.0,1.09015605]
[1752638487142,0.87963467,117590.0,117580.0,1.09015605]
[1752638488445,0.60021047,117590.0,117580.0,1.09015605]
[1752638488741,0.87963467,117590.0,117580.0,0.22587185]
[1752638488945,0.87963467,117590.0,117580.0,0.80927185]
[1752638489848,0.89489128,117590.0,117580.0,0.80927185]
[1752638490049,0.89489128,117590.0,117580.0,1.08869605]
[1752638490249,0.8183792,117590.0,117580.0,1.08869605]
[1752638490547,0.89489128,117590.0,117580.0,1.08869605]
[1752638495550,0.67669903,117590.0,117580.0,1.08869605]
[1752638495851,0.67669903,117590.0,117580.0,1.37264025]
[1752638495852,0.43011195,117590.0,117580.0,1.37264025]
[1752638496447,0.60018695,117590.0,117580.0,1.37264025]
[1752638496949,0.43011195,117590.0,117580.0,1.37264025]
[1752638501359,0.60018705,117590.0,117580.0,1.37264025]
[1752638501558,0.5389551,117590.0,117580.0,1.37264025]
[1752638501959,0.8183793,117590.0,117580.0,1.37264025]
[1752638502457,0.8183793,117590.0,117580.0,1.09321605]
[1752638503358,0.89489138,117590.0,117580.0,1.09321605]
[1752638504059,0.8183793,117590.0,117580.0,1.09321605]
[1752638504248,0.92549621,117590.0,117580.0,1.09321605]
[1752638504447,0.64607201,117590.0,117580.0,1.09321605]
[1752638504649,0.92549621,117590.0,117580.0,1.09321605]
[1752638506358,0.64607201,117590.0,117580.0,1.09321605]
[1752638506561,0.92549621,117590.0,117580.0,1.09321605]
[1752638511263,0.92549621,117590.0,117580.0,0.50778605]
[1752638511459,0.92549621,117590.0,117580.0,1.09142605]
[1752638511758,1.00204817,117590.0,117580.0,1.09142605]
[1752638511964,0.89493126,117590.0,117580.0,1.09142605]
[1752638515861,0.89493126,117590.0,117580.0,1.09640605]
[1752638516265,0.89493126,117590.0,117580.0,1.37583025]
[1752638516564,0.61550706,117590.0,117580.0,1.37583025]
[1752638516765,0.89493126,117590.0,117580.0,1.09640605]
[1752638518667,0.89493126,117590.0,117580.0,1.37583025]
[1752638520067,0.89493126,117590.0,117580.0,1.09640605]
[1752638521072,0.61550706,117590.0,117580.0,1.09640605]
[1752638521263,0.89493126,117590.0,117580.0,1.09640605]
[1752638521970,0.61550706,117590.0,117580.0,1.37583025]
[1752638522171,0.89493126,117590.0,117580.0,1.37583025]
[1752638522770,0.89493126,117590.0,117580.0,0.81698185]
[1752638522969,0.89493126,117590.0,117580.0,1.37583025]
[1752638523675,0.89493126,117590.0,117580.0,1.09640605]
[1752638524469,0.89493126,117590.0,117580.0,0.81200185]
[1752638524773,0.89493126,117590.0,117580.0,1.09142605]
[1752638526075,0.8183793,117590.0,117580.0,1.09142605]
[1752638526675,0.89493126,117590.0,117580.0,1.07280325]
[1752638527277,0.89726048,117590.0,117580.0,1.07086814]
[1752638527677,0.89726048,117590.0,117580.0,0.79144394]
[1752638527877,0.89726048,117590.0,117580.0,1.07086814]
[1752638530576,1.17668468,117590.0,117580.0,0.03771454]
[1752638530774,1.17668468,117590.0,117580.0,0.20531404]
[1752638531374,0.89726048,117590.0,117580.0,0.20531404]
[1752638532682,0.82070852,117590.0,117580.0,0.20531404]
[1752638532875,0.89726802,117590.0,117580.0,0.20531404]
[1752638537383,0.61784382,117590.0,117580.0,0.20531404]
[1752638537579,0.89726802,117590.0,117580.0,0.20531404]
[1752638537779,0.82070852,117590.0,117580.0,0.20531404]
[1752638539084,0.89723805,117590.0,117580.0,0.20531404]
[1752638539477,0.82070852,117590.0,117580.0,0.20531404]
[1752638539984,0.92782543,117590.0,117580.0,0.20531404]
[1752638543686,0.82070852,117590.0,117580.0,0.20531404]
[1752638548195,0.92782543,117590.0,117580.0,0.20531404]
[1752638548797,0.64840123,117590.0,117580.0,0.20531404]
[1752638549198,0.92782543,117590.0,117580.0,0.20531404]
[1752638550200,0.64840123,117590.0,117580.0,0.20531404]
[1752638550397,1.51150543,117590.0,117580.0,0.48716824]
[1752638550895,1.23208123,117590.0,117580.0,0.48716824]
[1752638551101,1.51150543,117590.0,117580.0,0.48716824]
[1752638551293,1.40438852,117590.0,117580.0,0.48716824]
[1752638551493,0.00236,117560.0,117550.0,0.36834]
[1752638551689,0.53304738,117560.0,117550.0,0.5808059]
[1752638551894,0.53304738,117560.0,117550.0,0.8602301]
[1752638552294,0.53304738,117560.0,117550.0,0.5808059]
[1752638552503,0.5353766,117560.0,117550.0,0.8602301]
[1752638554303,0.2559524,117560.0,117550.0,0.5808059]
[1752638554504,0.5353766,117560.0,117550.0,0.8602301]
[1752638554905,0.8148008,117560.0,117550.0,0.5758959]
[1752638556406,0.73826602,117560.0,117550.0,0.5758959]
[1752638556707,0.81474192,117560.0,117550.0,0.5333629]
[1752638556907,0.73826602,117560.0,117550.0,0.5333629]
[1752638557206,0.85388852,117560.0,117550.0,0.5309329]
[1752638560419,0.85388852,117560.0,117550.0,0.5339329]
[1752638561417,0.85388852,117560.0,117550.0,0.5309329]
[1752638561715,0.93028734,117560.0,117550.0,0.5319329]
[1752638561915,0.82317043,117560.0,117550.0,0.5319329]
[1752638562617,1.40841043,117560.0,117550.0,0.5319329]
[1752638564219,1.33201161,117560.0,117550.0,0.5319329]
[1752638569618,1.3930889,117560.0,117550.0,0.5319329]
[1752638571321,1.33201161,117560.0,117550.0,0.5319329]
[1752638576429,1.40841043,117560.0,117550.0,0.5319329]
[1752638576633,1.40737043,117560.0,117550.0,0.5343329]
[1752638579730,0.82317043,117560.0,117550.0,0.5343329]
[1752638579931,1.40709043,117560.0,117550.0,0.5343329]
[1752638581433,1.33069161,117560.0,117550.0,0.5343329]
[1752638581637,1.43780852,117560.0,117550.0,0.5343329]
[1752638583332,1.33069161,117560.0,117550.0,0.5343329]
[1752638584331,1.43780852,117560.0,117550.0,0.5343329]
[1752638586833,1.43780852,117560.0,117550.0,0.5319329]
[1752638587234,1.33069161,117560.0,117550.0,0.5319329]
[1752638592339,1.33069161,117560.0,117550.0,0.41699272]
[1752638594442,1.43795286,117560.0,117550.0,0.41699272]
[1752638596740,0.29518446,117560.0,117550.0,0.44330292]
[1752638596940,0.29518446,117560.0,117550.0,0.72272712]
[1752638596941,0.3632876,117560.0,117550.0,0.72272712]
[1752638597146,0.00929922,117560.0,117550.0,1.30560712]
[1752638597347,0.17941742,117560.0,117550.0,1.30560712]
[1752638598348,0.45884162,117560.0,117550.0,1.30560712]
[1752638599246,0.5200961,117560.0,117550.0,1.30560712]
[1752638599447,0.5200961,117560.0,117550.0,1.02618292]
[1752638599647,0.45884162,117560.0,117550.0,1.30560712]
[1752638600750,0.73826582,117560.0,117550.0,1.02618292]
[1752638600949,0.55227579,117560.0,117550.0,1.02618292]
[1752638601346,0.65953704,117560.0,117550.0,1.02618292]
[1752638601548,0.73609262,117560.0,117550.0,1.02618292]
[1752638601849,0.62883137,117560.0,117550.0,1.02618292]
[1752638602747,0.62883137,117560.0,117550.0,0.43626292]
[1752638602952,0.55227579,117560.0,117550.0,0.43626292]
[1752638603555,0.61351522,117560.0,117550.0,0.43626292]
[1752638604053,0.55227579,117560.0,117550.0,0.43626292]
[1752638604753,0.55227579,117560.0,117550.0,0.43626272]
[1752638605055,0.92513416,117560.0,117550.0,0.26613002]
[1752638605250,1.03239541,117560.0,117550.0,0.26613002]
[1752638605848,0.65953704,117560.0,117550.0,0.26613002]
[1752638606049,0.65953704,117560.0,117550.0,0.24685982]
[1752638606255,1.03239541,117560.0,117550.0,0.24685982]
[1752638607149,0.1701471,117540.0,117530.0,0.2126884]
[1752638607351,1.20501216,117540.0,117530.0,0.2126884]
[1752638607653,1.21186138,117540.0,117530.0,0.2126884]
[1752638609350,1.21286138,117540.0,117530.0,0.1701492]
[1752638609754,1.34047818,117540.0,117530.0,0.1701616]
[1752638610250,0.1701616,117530.0,117520.0,0.2977944]
[1752638610455,0.62419588,117530.0,117520.0,0.2575312]
[1752638610756,0.62871588,117530.0,117520.0,0.2575312]
[1752638611055,0.55216919,117530.0,117520.0,0.2575312]
[1752638611449,0.56063678,117530.0,117520.0,0.2575312]
[1752638611653,0.63718347,117530.0,117520.0,0.2575312]
[1752638615352,0.56063678,117530.0,117520.0,0.2575312]
[1752638615558,0.56063678,117530.0,117520.0,0.2552512]
[1752638617059,0.56063678,117530.0,117520.0,0.22084299]
[1752638617358,0.56063678,117530.0,117520.0,0.23892243]
[1752638618460,0.18777841,117530.0,117520.0,0.24120243]
[1752638618666,0.56063678,117530.0,117520.0,0.24120243]
[1752638619266,0.18777841,117530.0,117520.0,0.24120243]
[1752638619560,0.56063678,117530.0,117520.0,0.24120243]
[1752638619960,0.18777841,117530.0,117520.0,0.24120243]
[1752638620260,0.76207082,117530.0,117520.0,0.6188208]
[1752638620664,0.17931082,117530.0,117520.0,0.6188208]
[1752638623160,0.17931082,117530.0,117520.0,0.59114664]
[1752638624357,0.17931082,117530.0,117520.0,0.21828827]
[1752638625062,0.17931082,117530.0,117520.0,0.20431812]
[1752638625267,0.17931082,117530.0,117520.0,0.16450983]
[1752638628267,0.17931082,117530.0,117520.0,0.5373682]
[1752638630369,0.17931082,117530.0,117520.0,0.16450983]
[1752638634670,0.17931082,117530.0,117520.0,0.5373682]
[1752638635276,0.17931082,117530.0,117520.0,0.54595523]
[1752638635667,0.00232922,117530.0,117520.0,0.54595523]
[1752638635965,0.11201537,117560.0,117550.0,0.1701326]
[1752638636274,0.00485,117560.0,117550.0,1.14489484]
[1752638637572,0.00585,117560.0,117550.0,1.14489484]
[1752638640071,0.00585,117560.0,117550.0,0.77203647]
[1752638640273,0.00585,117560.0,117550.0,1.14489484]
[1752638643176,0.1783482,117560.0,117550.0,1.14489484]
[1752638643575,0.1773482,117560.0,117550.0,1.14489484]
[1752638644177,0.00723,117560.0,117550.0,1.14489484]
[1752638644777,0.1773482,117560.0,117550.0,1.14489484]
[1752638646172,0.00723,117560.0,117550.0,1.14489484]
[1752638646372,0.1773482,117560.0,117550.0,1.14489484]
[1752638646580,0.00723,117560.0,117550.0,1.14489484]
[1752638646780,0.1773482,117560.0,117550.0,1.14489484]
[1752638649879,0.1773482,117560.0,117550.0,1.14573484]
[1752638653881,0.1773482,117560.0,117550.0,0.56201484]
[1752638654082,0.1773482,117560.0,117550.0,1.14549484]
[1752638654680,0.1773482,117560.0,117550.0,0.77263647]
[1752638655984,0.1773482,117560.0,117550.0,0.77251647]
[1752638660688,0.1773482,117560.0,117550.0,1.14537484]
[1752638661689,0.00723,117560.0,117550.0,1.14537484]
[1752638661894,0.00485,117560.0,117550.0,1.14537484]
[1752638664392,0.07630658,117580.0,117570.0,0.1701037]
[1752638664597,0.1747092,117580.0,117570.0,1.19361163]
[1752638666094,0.1747092,117580.0,117570.0,1.20217398]
[1752638666292,0.1757092,117580.0,117570.0,1.19361163]
[1752638670797,0.1757092,117580.0,117570.0,1.20225172]
[1752638671000,0.1757092,117580.0,117570.0,1.19361163]
[1752638671997,0.001,117580.0,117570.0,1.19361163]
[1752638672195,0.001,117580.0,117570.0,1.21260456]
[1752638673292,0.36542,117590.0,117580.0,0.1700892]
[1752638673496,0.36542,117590.0,117580.0,0.54294757]
[1752638674496,0.3608,117590.0,117580.0,0.54294757]
[1752638677505,0.3608,117590.0,117580.0,0.71303557]
[1752638677806,0.5354662,117610.0,117600.0,0.1700602]
[1752638678005,0.5354662,117610.0,117600.0,1.12599857]
[1752638679406,0.5364662,117610.0,117600.0,1.12599857]
[1752638680004,0.5388762,117610.0,117600.0,1.12599857]
[1752638680201,0.5388762,117610.0,117600.0,0.7531402]
[1752638680403,0.91173457,117610.0,117600.0,0.7531402]
[1752638680802,0.5388762,117610.0,117600.0,0.7531402]
[1752638681805,0.5388762,117610.0,117600.0,0.1700602]
[1752638682008,0.5388762,117610.0,117600.0,0.7529402]
[1752638682400,0.91173457,117610.0,117600.0,0.1700602]
[1752638682699,0.1773003,117600.0,117590.0,0.2550946]
[1752638682905,0.55015867,117600.0,117590.0,0.8382546]
[1752638683102,0.55015867,117600.0,117590.0,0.7957383]
[1752638684702,0.55015867,117600.0,117590.0,0.1700628]
[1752638684904,0.67771227,117600.0,117590.0,0.7532348]
[1752638685101,0.72023037,117600.0,117590.0,0.7532348]
[1752638686107,0.72023037,117600.0,117590.0,0.58316]
[1752638687407,0.72123037,117600.0,117590.0,0.58316]
[1752638688004,0.1725148,117590.0,117580.0,0.85738022]
[1752638688205,0.55017317,117590.0,117580.0,0.85738022]
[1752638689508,0.55117317,117590.0,117580.0,0.85738022]
[1752638690408,0.1783148,117590.0,117580.0,0.85738022]
[1752638690607,0.55117317,117590.0,117580.0,0.85738022]
[1752638691603,0.1783148,117590.0,117580.0,0.85738022]
[1752638691801,0.25462138,117590.0,117580.0,0.85738022]
[1752638695604,0.62747975,117590.0,117580.0,0.85738022]
[1752638698218,0.62747975,117590.0,117580.0,0.85770022]
[1752638698918,0.63608441,117590.0,117580.0,0.85770022]
[1752638699619,0.25462138,117590.0,117580.0,0.85770022]
[1752638701019,0.26329937,117590.0,117580.0,0.85770022]
[1752638701219,0.18699279,117590.0,117580.0,0.27414022]
[1752638701519,0.63632231,117590.0,117580.0,0.85738022]
[1752638701718,0.55985116,117590.0,117580.0,0.85738022]
[1752638701911,0.55985116,117590.0,117580.0,0.27414022]
[1752638702108,0.63632231,117590.0,117580.0,0.85726022]
[1752638702922,0.62764432,117590.0,117580.0,0.85726022]
[1752638703420,0.63603163,117590.0,117580.0,0.85726022]
[1752638704521,0.55956048,117590.0,117580.0,0.85726022]
[1752638707422,0.55117317,117590.0,117580.0,0.85726022]
[1752638708021,0.55951017,117590.0,117580.0,0.85726022]
[1752638709126,0.55117317,117590.0,117580.0,0.85726022]
[1752638713627,0.1783148,117590.0,117580.0,0.85726022]
[1752638714223,0.25478595,117590.0,117580.0,0.85726022]
[1752638715025,0.62764432,117590.0,117580.0,0.85726022]
[1752638717435,0.62764432,117590.0,117580.0,0.18910862]
[1752638717639,0.62764432,117590.0,117580.0,0.77170862]
[1752638718133,0.62764432,117590.0,117580.0,0.7526892]
[1752638718330,0.25478595,117590.0,117580.0,0.7526892]
[1752638718533,0.62764432,117590.0,117580.0,0.7526892]
[1752638719035,0.62664432,117590.0,117580.0,0.7526892]
[1752638721238,0.25378595,117590.0,117580.0,0.7526892]
[1752638721438,0.62664432,117590.0,117580.0,0.7526892]
[1752638723838,0.62664432,117590.0,117580.0,0.75502015]
[1752638724138,0.62664432,117590.0,117580.0,0.85885971]
[1752638725939,0.55017317,117590.0,117580.0,0.85885971]
[1752638728939,0.45683481,117590.0,117580.0,0.85885971]
[1752638729540,0.45683481,117590.0,117580.0,1.13837972]
[1752638729738,0.45683481,117590.0,117580.0,0.85885971]
[1752638730235,0.45683481,117590.0,117580.0,1.13837972]
[1752638731442,0.45683481,117590.0,117580.0,0.55577972]
[1752638731643,0.45683481,117590.0,117580.0,1.13837972]
[1752638733943,0.53337021,117590.0,117580.0,1.13837972]
[1752638734937,0.45683481,117590.0,117580.0,1.13837972]
[1752638735240,0.56398437,117590.0,117580.0,1.13837972]
[1752638735442,0.45683481,117590.0,117580.0,0.85885971]
[1752638735843,0.56398437,117590.0,117580.0,0.85885971]
[1752638736445,0.56398437,117590.0,117580.0,0.27625971]
[1752638736643,0.56398437,117590.0,117580.0,0.85885971]
[1752638738145,0.45683481,117590.0,117580.0,0.85885971]
[1752638738545,0.1773148,117590.0,117580.0,1.13837972]
[1752638738745,0.45683481,117590.0,117580.0,1.13837972]
[1752638739547,0.1773148,117590.0,117580.0,1.13837972]
[1752638739740,0.53436023,117590.0,117580.0,1.13837972]
[1752638749450,0.45783481,117590.0,117580.0,1.13837972]
[1752638750352,0.53439866,117590.0,117580.0,1.13837972]
[1752638751158,0.45783481,117590.0,117580.0,1.13837972]
[1752638751457,0.56498437,117590.0,117580.0,1.13837972]
[1752638751651,0.56498437,117590.0,117580.0,0.85885971]
[1752638752250,0.56498437,117590.0,117580.0,0.27625971]
[1752638752452,1.40980322,117590.0,117580.0,0.10617051]
[1752638752860,1.30265366,117590.0,117580.0,0.10617051]
[1752638754358,1.05265366,117590.0,117580.0,0.10617051]
[1752638754753,0.97607792,117590.0,117580.0,0.10617051]
[1752638755157,1.05260702,117590.0,117580.0,0.10617051]
[1752638755760,1.46507902,117590.0,117580.0,0.10617051]
[1752638755955,1.18555901,117590.0,117580.0,0.27625971]
[1752638756150,0.60299901,117590.0,117580.0,0.27625971]
[1752638756356,0.53436391,117590.0,117580.0,0.55577972]
[1752638757157,0.53436391,117590.0,117580.0,0.27625971]
[1752638759063,0.627524,117590.0,117580.0,0.27625971]
[1752638761163,0.72691754,117590.0,117580.0,0.27625971]
[1752638762859,0.61976798,117590.0,117580.0,0.27625971]
[1752638763265,0.61976798,117590.0,117580.0,0.10617051]
[1752638763657,0.72691754,117590.0,117580.0,0.10617051]
[1752638764759,0.72691754,117590.0,117580.0,0.10117051]
[1752638764959,0.1701182,117560.0,117550.0,0.7977651]
[1752638765162,0.5497783,117560.0,117550.0,0.1724326]
[1752638765365,0.68751117,117560.0,117550.0,0.1724326]
[1752638765561,0.61099114,117560.0,117550.0,0.1724326]
[1752638766271,0.61099114,117560.0,117550.0,0.0043]
[1752638766968,0.61099114,117560.0,117550.0,0.1744326]
[1752638770178,0.5497783,117560.0,117550.0,0.1794126]
[1752638771279,0.5497783,117560.0,117550.0,0.1744326]
[1752638773479,0.61091731,117560.0,117550.0,0.1744326]
[1752638773680,0.5497783,117560.0,117550.0,0.1744326]
[1752638774279,0.61091731,117560.0,117550.0,0.1744326]
[1752638777280,0.23823721,117560.0,117550.0,0.1744326]
[1752638777480,0.61091731,117560.0,117550.0,0.1744326]
[1752638779186,0.61091731,117560.0,117550.0,0.1794226]
[1752638779390,0.23823721,117560.0,117550.0,0.1794226]
[1752638782086,0.61091731,117560.0,117550.0,0.1794226]
[1752638782683,0.61091731,117560.0,117550.0,0.1744326]
[1752638783186,0.61091731,117560.0,117550.0,0.1721326]
[1752638784278,0.61091731,117560.0,117550.0,0.002]
[1752638784786,0.62629833,117560.0,117550.0,0.1721326]
[1752638786988,0.62629833,117560.0,117550.0,0.1744726]
[1752638791794,0.62629833,117560.0,117550.0,0.002]
[1752638792094,0.62629833,117560.0,117550.0,0.1721326]
[1752638794098,0.9224584,117560.0,117550.0,0.002]
[1752638794484,1.02960796,117560.0,117550.0,0.002]
[1752638794687,0.65692786,117560.0,117550.0,0.002]
[1752638796392,0.28424776,117560.0,117550.0,0.1744726]
[1752638796597,0.28424776,117560.0,117550.0,0.5521427]
[1752638796794,0.28424776,117560.0,117550.0,0.1794626]
[1752638797197,0.25362351,117560.0,117550.0,0.57141472]
[1752638797489,0.13774505,117560.0,117550.0,1.15525472]
[1752638797695,0.06121974,117560.0,117550.0,1.15525472]
[1752638805502,0.06121974,117570.0,117560.0,0.1774081]
[1752638805802,0.06121974,117570.0,117560.0,0.5500882]
[1752638806302,0.23132334,117570.0,117560.0,0.5500882]
[1752638806501,0.1748936,117570.0,117560.0,0.5500882]
[1752638807004,0.1771736,117570.0,117560.0,0.5510882]
[1752638811011,0.1771736,117570.0,117560.0,0.1784081]
[1752638811211,0.1771736,117570.0,117560.0,0.5510882]
[1752638811612,0.1771736,117570.0,117560.0,0.1784081]
[1752638816219,0.00707,117590.0,117580.0,0.1773792]
[1752638816419,0.00479,117590.0,117580.0,1.15265318]
[1752638816624,0.00479,117590.0,117580.0,0.56873318]
[1752638816823,0.1771447,117590.0,117580.0,0.77997308]
[1752638817123,0.00707,117590.0,117580.0,0.77997308]
[1752638817622,0.00707,117590.0,117580.0,0.26453392]
[1752638817813,0.00707,117590.0,117580.0,0.84845392]
[1752638818224,0.00707,117590.0,117580.0,0.84745392]
[1752638818621,0.00707,117590.0,117580.0,1.22013402]
[1752638820227,0.00707,117590.0,117580.0,1.22879588]
[1752638821323,0.00707,117590.0,117580.0,1.22013402]
[1752638822723,0.00707,117590.0,117580.0,1.22025402]
[1752638822924,0.1771446,117590.0,117580.0,1.22025402]
[1752638824330,0.00707,117590.0,117580.0,1.22025402]
[1752638824824,0.1771446,117590.0,117580.0,1.22025402]
[1752638826433,0.23823758,117590.0,117580.0,1.22025402]
[1752638827419,0.06816298,117590.0,117580.0,1.22025402]
[1752638827630,0.00707,117590.0,117580.0,1.22025402]
[1752638828526,0.06818928,117590.0,117580.0,1.22025402]
[1752638828830,0.00707,117590.0,117580.0,1.22025402]
[1752638829028,0.06818795,117590.0,117580.0,1.22025402]
[1752638829327,0.1771447,117590.0,117580.0,1.22025402]
[1752638829729,0.23826115,117590.0,117580.0,1.22025402]